[Event "The Elitserien 2024/25: round 1 - 3"]
[Site "Scandic Infra City, Kanalvagen 10, Upplands Vasby, Sweden"]
[Date "2024.10.06"]
[Round "3.31"]
[White "Krantz, Christopher"]
[Black "Barkhagen, Jonas"]
[Result "1/2-1/2"]
[TimeControl "90 minutes for 40 moves + 30 minutes for the rest of the game + 30 seconds per move from move one."]
[BlackTitle "IM"]
[WhiteFideId "1707876"]
[BlackFideId "1700855"]
[WhiteElo "2225"]
[BlackElo "2413"]

1. d4 {[%clk 01:30:54]} {[%emt 00:00:07]} d5 {[%clk 01:30:09]} {[%emt
00:00:51]} 2. Nf3 {[%clk 01:31:09]} {[%emt 00:00:14]} Nf6 {[%clk 01:30:33]}
{[%emt 00:00:06]} 3. Bf4 {[%clk 01:31:24]} {[%emt 00:00:15]} c6 {[%clk
01:30:47]} {[%emt 00:00:17]} 4. e3 {[%clk 01:30:51]} {[%emt 00:01:03]} Bf5
{[%clk 01:28:45]} {[%emt 00:02:32]} 5. c4 {[%clk 01:30:38]} {[%emt 00:00:44]}
Nbd7 {[%clk 01:24:32]} {[%emt 00:04:42]} 6. Nc3 {[%clk 01:29:16]} {[%emt
00:01:52]} e6 {[%clk 01:24:36]} {[%emt 00:00:26]} 7. Qb3 {[%clk 01:28:59]}
{[%emt 00:00:47]} Qb6 {[%clk 01:23:59]} {[%emt 00:01:08]} 8. c5 {[%clk
01:28:18]} {[%emt 00:01:11]} Qxb3 {[%clk 01:24:22]} {[%emt 00:00:06]} 9. axb3
{[%clk 01:28:45]} {[%emt 00:00:03]} a6 {[%clk 01:24:37]} {[%emt 00:00:14]} 10.
b4 {[%clk 01:28:00]} {[%emt 00:01:16]} Rc8 {[%clk 01:24:59]} {[%emt 00:00:07]}
11. Nd2 {[%clk 01:23:27]} {[%emt 00:05:04]} Nh5 {[%clk 01:21:10]} {[%emt
00:04:19]} 12. Be5 {[%clk 00:59:41]} {[%emt 00:24:17]} Nhf6 {[%clk 01:10:45]}
{[%emt 00:10:55]} 13. Bf4 {[%clk 00:55:35]} {[%emt 00:04:36]} Nh5 {[%clk
01:09:25]} {[%emt 00:01:50]} 14. Be5 {[%clk 00:51:19]} {[%emt 00:04:46]} Nhf6
{[%clk 01:04:44]} {[%emt 00:05:11]} 15. Bf4 {[%clk 00:50:19]} {[%emt 00:01:29]}
1/2-1/2

[Event "The Elitserien 2024/25: round 1 - 3"]
[Site "Scandic Infra City, Kanalvagen 10, Upplands Vasby, Sweden"]
[Date "2024.10.06"]
[Round "3.32"]
[White "Wiedenkeller, Michael"]
[Black "Rajcevski, Dejan"]
[Result "1-0"]
[TimeControl "90 minutes for 40 moves + 30 minutes for the rest of the game + 30 seconds per move from move one."]
[WhiteTitle "IM"]
[WhiteFideId "1700146"]
[BlackFideId "1759027"]
[WhiteElo "2406"]
[BlackElo "2131"]

1. d4 {[%clk 01:30:36]} {[%emt 00:00:24]} d5 {[%clk 01:30:37]} {[%emt
00:00:23]} 2. c4 {[%clk 01:30:24]} {[%emt 00:00:42]} e6 {[%clk 01:31:00]}
{[%emt 00:00:08]} 3. Nf3 {[%clk 01:30:14]} {[%emt 00:00:39]} Be7 {[%clk
01:31:07]} {[%emt 00:00:23]} 4. Nc3 {[%clk 01:28:50]} {[%emt 00:01:54]} Nf6
{[%clk 01:31:14]} {[%emt 00:00:25]} 5. g3 {[%clk 01:28:59]} {[%emt 00:00:21]}
O-O {[%clk 01:31:05]} {[%emt 00:00:37]} 6. Bg2 {[%clk 01:29:23]} {[%emt
00:00:06]} c6 {[%clk 01:30:10]} {[%emt 00:01:24]} 7. O-O {[%clk 01:25:28]}
{[%emt 00:04:26]} Nbd7 {[%clk 01:29:51]} {[%emt 00:00:49]} 8. Qd3 {[%clk
01:25:30]} {[%emt 00:00:29]} b6 {[%clk 01:27:16]} {[%emt 00:03:05]} 9. e4
{[%clk 01:18:55]} {[%emt 00:07:04]} Ba6 {[%clk 01:25:07]} {[%emt 00:02:40]} 10.
b3 {[%clk 01:18:27]} {[%emt 00:00:57]} Rc8 {[%clk 01:24:49]} {[%emt 00:00:48]}
11. e5 {[%clk 01:09:32]} {[%emt 00:09:25]} Ne8 {[%clk 01:25:11]} {[%emt
00:00:09]} 12. a4 {[%clk 00:58:10]} {[%emt 00:11:52]} dxc4 {[%clk 01:09:01]}
{[%emt 00:16:40]} 13. bxc4 {[%clk 00:44:36]} {[%emt 00:14:03]} Nc5 {[%clk
01:03:26]} {[%emt 00:06:05]} 14. Qc2 {[%clk 00:44:41]} {[%emt 00:00:24]} Bxc4
{[%clk 01:01:24]} {[%emt 00:02:33]} 15. dxc5 {[%clk 00:45:04]} {[%emt
00:00:06]} Bxf1 {[%clk 01:01:26]} {[%emt 00:00:28]} 16. Bxf1 {[%clk 00:39:42]}
{[%emt 00:05:53]} Bxc5 {[%clk 01:00:25]} {[%emt 00:01:31]} 17. Ng5 {[%clk
00:39:08]} {[%emt 00:01:04]} g6 {[%clk 01:00:14]} {[%emt 00:00:40]} 18. Nge4
{[%clk 00:38:41]} {[%emt 00:00:57]} Be7 {[%clk 00:55:41]} {[%emt 00:05:03]} 19.
Bh6 {[%clk 00:37:18]} {[%emt 00:01:54]} Ng7 {[%clk 00:54:07]} {[%emt 00:02:04]}
20. Ba6 {[%clk 00:31:46]} {[%emt 00:06:02]} Rc7 {[%clk 00:50:03]} {[%emt
00:04:33]} 21. Rd1 {[%clk 00:31:15]} {[%emt 00:01:02]} Qb8 {[%clk 00:50:08]}
{[%emt 00:00:25]} 22. Nf6+ {[%clk 00:31:17]} {[%emt 00:00:28]} Kh8 {[%clk
00:48:31]} {[%emt 00:02:06]} 23. Nd7 {[%clk 00:30:57]} {[%emt 00:00:50]} Rxd7
{[%clk 00:47:14]} {[%emt 00:01:49]} 24. Rxd7 {[%clk 00:30:57]} {[%emt
00:00:29]} Re8 {[%clk 00:45:02]} {[%emt 00:02:40]} 25. Bxg7+ {[%clk 00:30:11]}
{[%emt 00:01:17]} Kxg7 {[%clk 00:45:24]} {[%emt 00:00:08]} 26. Qe4 {[%clk
00:30:06]} {[%emt 00:00:35]} Kf8 {[%clk 00:44:40]} {[%emt 00:01:14]} 27. Qf4
{[%clk 00:27:50]} {[%emt 00:02:46]} Rd8 {[%clk 00:44:13]} {[%emt 00:00:58]} 28.
Rb7 {[%clk 00:28:03]} {[%emt 00:00:18]} Qa8 {[%clk 00:42:59]} {[%emt 00:01:43]}
29. Qh6+ {[%clk 00:28:25]} 1-0

[Event "The Elitserien 2024/25: round 1 - 3"]
[Site "Scandic Infra City, Kanalvagen 10, Upplands Vasby, Sweden"]
[Date "2024.10.06"]
[Round "3.33"]
[White "Sumets, Andrey"]
[Black "Cicak, Slavko"]
[Result "1/2-1/2"]
[TimeControl "90 minutes for 40 moves + 30 minutes for the rest of the game + 30 seconds per move from move one."]
[WhiteTitle "GM"]
[BlackTitle "GM"]
[WhiteFideId "14105500"]
[BlackFideId "1700588"]
[WhiteElo "2517"]
[BlackElo "2499"]

1. d4 {[%clk 01:30:58]} {[%emt 14:58:27]} Nf6 {[%clk 01:30:37]} {[%emt
00:00:25]} 2. c4 {[%clk 01:31:17]} {[%emt 00:00:10]} g6 {[%clk 01:30:22]}
{[%emt 00:00:44]} 3. Nc3 {[%clk 01:31:42]} {[%emt 00:00:05]} Bg7 {[%clk
01:30:44]} {[%emt 00:00:09]} 4. e4 {[%clk 01:32:07]} {[%emt 00:00:04]} O-O
{[%clk 01:31:05]} {[%emt 00:00:10]} 5. Nf3 {[%clk 01:32:29]} {[%emt 00:00:07]}
d6 {[%clk 01:31:16]} {[%emt 00:00:19]} 6. Be2 {[%clk 01:32:54]} {[%emt
00:00:04]} Nc6 {[%clk 01:31:31]} {[%emt 00:00:16]} 7. O-O {[%clk 01:32:30]}
{[%emt 00:00:54]} Re8 {[%clk 01:30:53]} {[%emt 00:01:08]} 8. d5 {[%clk
01:30:38]} {[%emt 00:02:23]} Nb4 {[%clk 01:30:35]} {[%emt 00:00:48]} 9. a3
{[%clk 01:26:13]} {[%emt 00:04:55]} Na6 {[%clk 01:30:16]} {[%emt 00:00:49]} 10.
Nd4 {[%clk 01:22:20]} {[%emt 00:04:22]} Nc5 {[%clk 01:29:37]} {[%emt 00:01:10]}
11. f3 {[%clk 01:16:38]} {[%emt 00:06:11]} a5 {[%clk 01:28:43]} {[%emt
00:01:26]} 12. Bg5 {[%clk 01:03:54]} {[%emt 00:13:13]} a4 {[%clk 01:25:58]}
{[%emt 00:03:15]} 13. Rb1 {[%clk 01:03:18]} {[%emt 00:01:07]} Bd7 {[%clk
01:23:26]} {[%emt 00:03:01]} 14. Kh1 {[%clk 01:03:07]} {[%emt 00:00:41]} c6
{[%clk 01:21:35]} {[%emt 00:02:21]} 15. Re1 {[%clk 00:59:28]} {[%emt 00:04:08]}
Qa5 {[%clk 01:19:15]} {[%emt 00:02:51]} 16. Bf1 {[%clk 00:52:40]} {[%emt
00:07:17]} e5 {[%clk 01:16:35]} {[%emt 00:03:11]} 17. dxe6 {[%clk 00:51:19]}
{[%emt 00:01:52]} Nxe6 {[%clk 01:16:33]} {[%emt 00:00:30]} 18. Nxe6 {[%clk
00:51:42]} {[%emt 00:00:07]} Bxe6 {[%clk 01:16:54]} {[%emt 00:00:10]} 19. Bf4
{[%clk 00:50:40]} {[%emt 00:01:27]} Red8 {[%clk 01:01:19]} {[%emt 00:16:09]} 20.
Bd2 {[%clk 00:45:16]} {[%emt 00:05:53]} Qa7 {[%clk 00:57:52]} {[%emt 00:03:58]}
21. Be3 {[%clk 00:40:32]} {[%emt 00:05:13]} Qa5 {[%clk 00:57:04]} {[%emt
00:01:19]} 22. Bd2 {[%clk 00:40:28]} {[%emt 00:00:34]} Qa7 {[%clk 00:57:28]}
{[%emt 00:00:06]} 23. Be3 {[%clk 00:40:55]} {[%emt 00:00:02]} Qa5 {[%clk
00:57:52]} {[%emt 00:00:06]} 24. Kg1 {[%emt 00:00:14]} 1/2-1/2

[Event "The Elitserien 2024/25: round 1 - 3"]
[Site "Scandic Infra City, Kanalvagen 10, Upplands Vasby, Sweden"]
[Date "2024.10.06"]
[Round "3.34"]
[White "Von Bahr, Oskar"]
[Black "Solodovnichenko, Yuri"]
[Result "1/2-1/2"]
[TimeControl "90 minutes for 40 moves + 30 minutes for the rest of the game + 30 seconds per move from move one."]
[WhiteTitle "IM"]
[BlackTitle "GM"]
[WhiteFideId "1703250"]
[BlackFideId "14104369"]
[WhiteElo "2370"]
[BlackElo "2490"]

1. Nf3 {[%clk 01:30:48]} {[%emt 00:00:11]} d5 {[%clk 01:30:11]} {[%emt
00:00:51]} 2. g3 {[%clk 01:30:50]} {[%emt 00:00:27]} Nf6 {[%clk 01:30:13]}
{[%emt 00:00:27]} 3. Bg2 {[%clk 01:31:10]} {[%emt 00:00:10]} c6 {[%clk
01:30:37]} {[%emt 00:00:06]} 4. O-O {[%clk 01:31:13]} {[%emt 00:00:28]} Bg4
{[%clk 01:30:52]} {[%emt 00:00:13]} 5. h3 {[%clk 01:30:46]} {[%emt 00:00:58]}
Bh5 {[%clk 01:30:32]} {[%emt 00:00:49]} 6. d4 {[%clk 01:29:45]} {[%emt
00:01:31]} e6 {[%clk 01:30:38]} {[%emt 00:00:24]} 7. c4 {[%clk 01:29:19]}
{[%emt 00:00:56]} Be7 {[%clk 01:30:59]} {[%emt 00:00:10]} 8. Qb3 {[%clk
01:26:35]} {[%emt 00:03:12]} Qb6 {[%clk 01:30:47]} {[%emt 00:00:42]} 9. Nc3
{[%clk 01:26:09]} {[%emt 00:00:57]} Nbd7 {[%clk 01:30:25]} {[%emt 00:00:53]} 10.
cxd5 {[%clk 01:22:22]} {[%emt 00:04:17]} exd5 {[%clk 01:15:48]} {[%emt
00:15:07]} 11. Nh4 {[%clk 01:04:00]} {[%emt 00:18:51]} O-O {[%clk 01:11:31]}
{[%emt 00:04:47]} 12. g4 {[%clk 00:58:11]} {[%emt 00:06:19]} Bg6 {[%clk
01:07:45]} {[%emt 00:04:15]} 13. Nxg6 {[%clk 00:58:12]} {[%emt 00:00:31]} hxg6
{[%clk 01:05:07]} {[%emt 00:03:08]} 14. Qxb6 {[%clk 00:50:26]} {[%emt
00:08:14]} axb6 {[%clk 01:04:52]} {[%emt 00:00:45]} 15. g5 {[%clk 00:45:21]}
{[%emt 00:05:36]} Nh7 {[%clk 01:01:28]} {[%emt 00:03:54]} 16. e4 {[%clk
00:41:23]} {[%emt 00:04:29]} dxe4 {[%clk 01:01:26]} {[%emt 00:00:31]} 17. Nxe4
{[%clk 00:41:13]} {[%emt 00:00:40]} f5 {[%clk 00:58:09]} {[%emt 00:03:48]} 18.
gxf6 {[%clk 00:40:35]} {[%emt 00:01:09]} Ndxf6 {[%clk 00:58:32]} {[%emt
00:00:07]} 19. Rd1 {[%clk 00:34:48]} {[%emt 00:06:16]} Nxe4 {[%clk 00:45:20]}
{[%emt 00:13:42]} 20. Bxe4 {[%clk 00:35:08]} {[%emt 00:00:10]} Bh4 {[%clk
00:45:46]} {[%emt 00:00:04]} 21. Be3 {[%clk 00:32:20]} {[%emt 00:03:18]} Nf6
{[%clk 00:45:46]} {[%emt 00:00:29]} 22. Bg2 {[%clk 00:28:25]} {[%emt 00:04:25]}
Rfd8 {[%clk 00:37:45]} {[%emt 00:08:32]} 23. a3 {[%clk 00:11:06]} {[%emt
00:17:49]} Nd5 {[%clk 00:36:36]} {[%emt 00:01:38]} 24. Rd3 {[%clk 00:09:24]}
{[%emt 00:02:12]} Rd6 {[%clk 00:35:19]} {[%emt 00:01:48]} 25. Rc1 {[%clk
00:09:20]} {[%emt 00:00:34]} Rf8 {[%clk 00:34:47]} {[%emt 00:01:01]} 26. Rb3
{[%clk 00:08:47]} {[%emt 00:01:03]} Bd8 {[%clk 00:20:44]} {[%emt 00:14:33]} 27.
Rc4 {[%clk 00:08:28]} {[%emt 00:00:49]} Nf4 {[%clk 00:18:27]} {[%emt 00:02:46]}
28. Ra4 {[%clk 00:06:54]} {[%emt 00:02:06]} Nxg2 {[%clk 00:09:48]} {[%emt
00:09:09]} 29. Kxg2 {[%clk 00:07:12]} {[%emt 00:00:12]} Rd5 {[%clk 00:10:06]}
{[%emt 00:00:12]} 30. Ra8 {[%clk 00:04:46]} {[%emt 00:02:56]} Bc7 {[%clk
00:06:50]} {[%emt 00:03:46]} 31. Ra7 {[%clk 00:03:28]} {[%emt 00:01:48]} Rb8
{[%clk 00:07:16]} {[%emt 00:00:04]} 32. a4 {[%clk 00:03:16]} {[%emt 00:00:43]}
Kf7 {[%clk 00:07:30]} {[%emt 00:00:16]} 33. Rc3 {[%clk 00:02:48]} {[%emt
00:00:56]} Ke6 {[%clk 00:03:01]} {[%emt 00:05:00]} 34. Rxc6+ {[%clk 00:02:35]}
{[%emt 00:00:43]} bxc6 {[%clk 00:03:26]} {[%emt 00:00:05]} 35. Rxc7 {[%clk
00:03:02]} {[%emt 00:00:04]} c5 {[%clk 00:02:00]} {[%emt 00:01:56]} 36. dxc5
{[%clk 00:03:05]} {[%emt 00:00:28]} bxc5 {[%clk 00:02:24]} {[%emt 00:00:05]} 37.
Bxc5 {[%clk 00:02:17]} {[%emt 00:01:19]} Rxb2 {[%clk 00:02:41]} {[%emt
00:00:13]} 38. Be3 {[%clk 00:02:08]} {[%emt 00:00:38]} Rd7 {[%clk 00:02:39]}
{[%emt 00:00:32]} 39. Rc6+ {[%clk 00:01:50]} {[%emt 00:00:48]} Rd6 {[%clk
00:02:01]} {[%emt 00:01:07]} 40. Rc7 {[%clk 00:01:56]} {[%emt 00:00:24]} Rd7
{[%clk 00:02:22]} {[%emt 00:00:10]} 41. Rc6+ {[%clk 00:02:00]} {[%emt
00:00:26]} Rd6 {[%clk 00:28:59]} {[%emt 00:03:53]} 42. Rc7 {[%clk 00:31:55]}
{[%emt 00:00:35]} Rd7 {[%clk 00:28:50]} {[%emt 00:00:40]} 1/2-1/2

[Event "The Elitserien 2024/25: round 1 - 3"]
[Site "Scandic Infra City, Kanalvagen 10, Upplands Vasby, Sweden"]
[Date "2024.10.06"]
[Round "3.35"]
[White "Hillarp, Tiger"]
[Black "Eriksson, Johan"]
[Result "1-0"]
[TimeControl "90 minutes for 40 moves + 30 minutes for the rest of the game + 30 seconds per move from move one."]
[WhiteTitle "GM"]
[BlackTitle "IM"]
[WhiteFideId "1700812"]
[BlackFideId "1702564"]
[WhiteElo "2457"]
[BlackElo "2389"]

1. d4 {[%clk 01:28:43]} {[%emt 00:02:16]} Nf6 {[%clk 01:30:54]} {[%emt
00:00:05]} 2. c4 {[%clk 01:29:07]} {[%emt 00:00:07]} g6 {[%clk 01:31:12]}
{[%emt 00:00:12]} 3. Nc3 {[%clk 01:29:16]} {[%emt 00:00:22]} d5 {[%clk
01:31:19]} {[%emt 00:00:21]} 4. Nf3 {[%clk 01:27:26]} {[%emt 00:02:21]} Bg7
{[%clk 01:31:43]} {[%emt 00:00:06]} 5. h4 {[%clk 01:24:04]} {[%emt 00:03:52]}
c6 {[%clk 01:31:05]} {[%emt 00:01:08]} 6. cxd5 {[%clk 01:21:54]} {[%emt
00:02:40]} cxd5 {[%clk 01:31:25]} {[%emt 00:00:11]} 7. Bf4 {[%clk 01:22:17]}
{[%emt 00:00:07]} Nc6 {[%clk 01:29:54]} {[%emt 00:02:00]} 8. e3 {[%clk
01:22:24]} {[%emt 00:00:23]} O-O {[%clk 01:25:33]} {[%emt 00:04:51]} 9. Be2
{[%clk 01:16:40]} {[%emt 00:06:14]} Bg4 {[%clk 01:19:54]} {[%emt 00:06:10]} 10.
Qb3 {[%clk 00:59:05]} {[%emt 00:18:05]} Qb6 {[%clk 01:04:26]} {[%emt 00:15:58]}
11. Qxb6 {[%clk 00:56:23]} {[%emt 00:03:12]} axb6 {[%clk 01:01:32]} {[%emt
00:03:24]} 12. Ne5 {[%clk 00:51:35]} {[%emt 00:05:17]} Bxe2 {[%clk 01:00:24]}
{[%emt 00:01:38]} 13. Kxe2 {[%clk 00:50:58]} {[%emt 00:01:07]} e6 {[%clk
00:54:51]} {[%emt 00:06:03]} 14. Rhc1 {[%clk 00:49:11]} {[%emt 00:02:16]} Rfc8
{[%clk 00:51:24]} {[%emt 00:03:57]} 15. f3 {[%clk 00:46:19]} {[%emt 00:03:22]}
Nxe5 {[%clk 00:43:00]} {[%emt 00:08:55]} 16. Bxe5 {[%clk 00:44:19]} {[%emt
00:02:30]} Ne8 {[%clk 00:42:32]} {[%emt 00:00:57]} 17. Kd3 {[%clk 00:33:22]}
{[%emt 00:11:27]} Rc6 {[%clk 00:30:18]} {[%emt 00:12:44]} 18. Nb5 {[%clk
00:24:21]} {[%emt 00:09:32]} Kf8 {[%clk 00:26:50]} {[%emt 00:03:59]} 19. g4
{[%clk 00:16:32]} {[%emt 00:08:19]} Ke7 {[%clk 00:23:28]} {[%emt 00:03:51]} 20.
Rc3 {[%clk 00:12:04]} {[%emt 00:04:58]} Kd7 {[%clk 00:19:34]} {[%emt 00:04:24]}
21. Bxg7 {[%clk 00:12:17]} {[%emt 00:00:17]} Nxg7 {[%clk 00:19:57]} {[%emt
00:00:07]} 22. e4 {[%clk 00:12:40]} {[%emt 00:00:06]} Ne8 {[%clk 00:15:43]}
{[%emt 00:04:44]} 23. e5 {[%clk 00:11:32]} {[%emt 00:01:38]} Rxc3+ {[%clk
00:15:33]} {[%emt 00:00:42]} 24. Nxc3 {[%clk 00:11:12]} {[%emt 00:00:50]} Nc7
{[%clk 00:15:13]} {[%emt 00:00:49]} 25. Rh1 {[%clk 00:10:49]} {[%emt 00:00:53]}
Kc6 {[%clk 00:11:17]} {[%emt 00:04:27]} 26. a3 {[%clk 00:08:25]} {[%emt
00:02:54]} Rf8 {[%clk 00:08:32]} {[%emt 00:03:15]} 27. Ke3 {[%clk 00:07:22]}
{[%emt 00:01:34]} f6 {[%clk 00:08:26]} {[%emt 00:00:35]} 28. Rc1 {[%clk
00:04:25]} {[%emt 00:03:27]} Kd7 {[%clk 00:04:46]} {[%emt 00:04:11]} 29. Ne2
{[%clk 00:04:40]} {[%emt 00:00:14]} fxe5 {[%clk 00:04:31]} {[%emt 00:00:45]} 30.
dxe5 {[%clk 00:05:02]} {[%emt 00:00:08]} Ra8 {[%clk 00:03:08]} {[%emt
00:01:52]} 31. Nd4 {[%clk 00:04:46]} {[%emt 00:00:46]} Ra4 {[%clk 00:03:28]}
{[%emt 00:00:10]} 32. b3 {[%clk 00:04:48]} {[%emt 00:00:29]} Ra5 {[%clk
00:03:17]} {[%emt 00:00:41]} 33. Kd3 {[%clk 00:02:58]} {[%emt 00:02:21]} Na6
{[%clk 00:02:42]} {[%emt 00:01:04]} 34. h5 {[%clk 00:01:03]} {[%emt 00:02:25]}
Rxa3 {[%clk 00:01:35]} {[%emt 00:01:37]} 35. hxg6 {[%clk 00:01:07]} {[%emt
00:00:26]} hxg6 {[%clk 00:02:00]} {[%emt 00:00:06]} 36. Rh1 {[%clk 00:01:28]}
{[%emt 00:00:08]} Nb4+ {[%clk 00:01:30]} {[%emt 00:01:01]} 37. Kc3 {[%clk
00:00:44]} {[%emt 00:01:14]} Nc6 {[%clk 00:01:39]} {[%emt 00:00:21]} 38. Rh7+
{[%clk 00:01:08]} {[%emt 00:00:07]} Kc8 {[%clk 00:01:31]} {[%emt 00:00:37]} 39.
Rh8+ {[%clk 00:01:09]} {[%emt 00:00:30]} Kd7 {[%clk 00:01:47]} {[%emt
00:00:15]} 40. Rh7+ {[%clk 00:01:27]} {[%emt 00:00:10]} Kc8 {[%clk 00:02:06]}
{[%emt 00:00:11]} 41. Nxe6 {[%clk 00:20:39]} {[%emt 00:11:18]} Nxe5 {[%clk
00:31:24]} {[%emt 00:01:11]} 42. g5 {[%clk 00:19:36]} {[%emt 00:01:34]} Nxf3
{[%clk 00:29:34]} {[%emt 00:02:20]} 43. Rc7+ {[%clk 00:19:14]} {[%emt
00:00:52]} Kb8 {[%clk 00:29:58]} {[%emt 00:00:07]} 44. Rf7 {[%clk 00:19:35]}
{[%emt 00:00:08]} Nxg5 {[%clk 00:15:07]} {[%emt 00:15:23]} 45. Rf8+ {[%clk
00:19:44]} {[%emt 00:00:20]} Ka7 {[%clk 00:15:32]} {[%emt 00:00:04]} 46. Nc7
{[%clk 00:19:48]} {[%emt 00:00:27]} 1-0

[Event "The Elitserien 2024/25: round 1 - 3"]
[Site "Scandic Infra City, Kanalvagen 10, Upplands Vasby, Sweden"]
[Date "2024.10.06"]
[Round "3.36"]
[White "Henriksson, Johan"]
[Black "Arman, Deniz"]
[Result "0-1"]
[TimeControl "90 minutes for 40 moves + 30 minutes for the rest of the game + 30 seconds per move from move one."]
[WhiteTitle "FM"]
[BlackTitle "FM"]
[WhiteFideId "1703560"]
[BlackFideId "6302106"]
[WhiteElo "2321"]
[BlackElo "2348"]

1. d4 {[%clk 01:30:57]} {[%emt 00:00:02]} Nf6 {[%clk 01:29:17]} {[%emt
00:01:43]} 2. c4 {[%clk 01:31:18]} {[%emt 00:00:09]} g6 {[%clk 01:29:15]}
{[%emt 00:00:32]} 3. g3 {[%clk 01:31:23]} {[%emt 00:00:25]} Bg7 {[%clk
01:28:53]} {[%emt 00:00:53]} 4. Bg2 {[%clk 01:31:43]} {[%emt 00:00:10]} d5
{[%clk 01:19:15]} {[%emt 00:10:08]} 5. cxd5 {[%clk 01:21:20]} {[%emt 00:10:53]}
Nxd5 {[%clk 01:19:27]} {[%emt 00:00:17]} 6. Nf3 {[%clk 01:18:35]} {[%emt
00:03:16]} Nb6 {[%clk 01:18:08]} {[%emt 00:01:48]} 7. a4 {[%clk 01:13:21]}
{[%emt 00:05:45]} a5 {[%clk 01:15:14]} {[%emt 00:03:24]} 8. Nc3 {[%clk
01:10:33]} {[%emt 00:03:18]} Nc6 {[%clk 01:10:57]} {[%emt 00:04:46]} 9. Nb5
{[%clk 01:08:46]} {[%emt 00:02:17]} Nb4 {[%clk 01:07:16]} {[%emt 00:04:11]} 10.
Bf4 {[%clk 01:04:15]} {[%emt 00:05:01]} N6d5 {[%clk 01:05:00]} {[%emt
00:02:46]} 11. Rc1 {[%clk 01:03:26]} {[%emt 00:01:19]} c6 {[%clk 01:03:12]}
{[%emt 00:02:18]} 12. Nc3 {[%clk 01:02:57]} {[%emt 00:00:59]} Nxf4 {[%clk
00:53:58]} {[%emt 00:09:45]} 13. gxf4 {[%clk 01:03:21]} {[%emt 00:00:06]} Bf5
{[%clk 00:36:59]} {[%emt 00:17:28]} 14. Bf1 {[%clk 00:46:04]} {[%emt 00:17:48]}
O-O {[%clk 00:34:03]} {[%emt 00:03:26]} 15. e3 {[%clk 00:45:39]} {[%emt
00:00:55]} c5 {[%clk 00:27:55]} {[%emt 00:06:37]} 16. dxc5 {[%clk 00:35:24]}
{[%emt 00:10:45]} Qc8 {[%clk 00:21:58]} {[%emt 00:06:27]} 17. Nd4 {[%clk
00:27:25]} {[%emt 00:08:29]} Bxd4 {[%clk 00:18:42]} {[%emt 00:03:46]} 18. Qxd4
{[%clk 00:17:16]} {[%emt 00:10:40]} Rd8 {[%clk 00:18:16]} {[%emt 00:00:56]} 19.
Qc4 {[%clk 00:13:21]} {[%emt 00:04:25]} Bd3 {[%clk 00:16:18]} {[%emt 00:02:27]}
20. Qb3 {[%clk 00:11:56]} {[%emt 00:01:55]} Bxf1 {[%clk 00:13:47]} {[%emt
00:03:00]} 21. Kxf1 {[%clk 00:12:00]} {[%emt 00:00:26]} Qh3+ {[%clk 00:13:41]}
{[%emt 00:00:37]} 22. Ke2 {[%clk 00:11:34]} {[%emt 00:00:57]} Qg4+ {[%clk
00:13:52]} {[%emt 00:00:18]} 23. Kf1 {[%clk 00:11:38]} {[%emt 00:00:26]} Qf3
{[%clk 00:13:19]} {[%emt 00:01:04]} 24. Rg1 {[%clk 00:09:03]} {[%emt 00:03:05]}
Rd2 {[%clk 00:12:45]} {[%emt 00:01:04]} 0-1